Cogmind - Beta 9.2 *** ADVENTURER MODE // 2019.12.07 @ 19:57:51 Player: illuwedin Result: Destroyed by G-47 Trooper with Particle Gun Performance ------------- Evolutions (2) 1000 Regions Visited (4) 800 Robots Destroyed (7) 35 Value Destroyed (107) 107 Prototype IDs (2) 40 Alien Tech Used (0) 0 Bonus (56) 56 TOTAL SCORE: 2038 Bonus ------- Follower Combat Kills 56 Cogmind --------- Core Integrity 0/550 Matter 254/300 Energy 67/160 System Corruption 0% Temperature Cool (9) Movement Treading (160) Location -8/Materials Parts ------- > --- POWER (2) -------- Light Nuclear Core > --- PROPULSION (4) --- Medium Treads > --- UTILITY (3) ------ Advanced Signal Interpreter Salvage Targeting Computer Recalibrator > --- WEAPON (2) ------- (None) > --- INVENTORY (4) ---- Armored Treads Particle Gun Peak State ------------ > --- POWER ------------ Light Nuclear Core > --- PROPULSION ------- Medium Treads > --- UTILITY ---------- Advanced Signal Interpreter Salvage Targeting Computer Recalibrator > --- WEAPON ----------- Heavy Laser > --- INVENTORY -------- Armored Treads Particle Gun [Rating: 20] Favorites ----------- Power Light Nuclear Core Engine Improved Ion Engine Power Core Light Nuclear Core Propulsion Flight Unit Treads Light Treads Wheel Wheel Flight Unit Flight Unit Utility ECM Suite Device ECM Suite Storage Small Storage Unit Processor Targeting Computer Hackware System Shield Weapon Particle Gun Energy Gun Particle Gun Ballistic Gun Light Assault Rifle Build | -11 -10 -9 -9 -8 ------- Run | Scr Mat Mat Min Mat Slots Evolved 4 | . . 2 . 2 Power 1 | . . 1 . . Propulsion 2 | . . 1 . 1 Utility 1 | . . . . 1 Weapon . | . . . . . Parts Attached 34 | 6 7 . 12 9 Power 7 | 1 1 . 4 1 Engine 4 | 1 1 . 2 . Core 3 | . . . 2 1 Reactor . | . . . . . Propulsion 9 | 2 2 . 3 2 Treads 3 | . . . 2 1 Leg . | . . . . . Wheel 2 | 2 . . . . Hover . | . . . . . Flight 4 | . 2 . 1 1 Utility 8 | 1 2 . . 5 Device 3 | . 1 . . 2 Storage 1 | 1 . . . . Processor 3 | . 1 . . 2 Hackware 1 | . . . . 1 Protection . | . . . . . Artifact . | . . . . . Weapon 10 | 2 2 . 5 1 Energy Gun 4 | 1 . . 2 1 Energy Cannon . | . . . . . Ballistic Gun 6 | 1 2 . 3 . Ballistic Cannon . | . . . . . Launcher . | . . . . . Special Weapon . | . . . . . Impact Weapon . | . . . . . Slashing Weapon . | . . . . . Piercing Weapon . | . . . . . Special Melee Weapon . | . . . . . Unidentified Prototypes . | . . . . . Parts Lost 13 | . 2 . . 11 Power 2 | . . . . 2 Propulsion 4 | . 1 . . 3 Utility 4 | . . . . 4 Weapon 3 | . 1 . . 2 Highest Loss Streak 8 | . 2 . . 8 Average Slot Usage (%) 87 | . 91 77 92 60 Engine 8 | . 14 11 7 . Core 9 | . . . 12 9 Treads 6 | . . . 9 5 Wheel 5 | . 22 . . . Flight 16 | . 4 22 22 13 Device 10 | . 8 11 11 9 Storage 2 | . 12 . . . Processor 8 | . 1 11 11 11 Energy Gun 11 | . 10 . 12 8 Ballistic Gun 7 | . 16 22 5 . Naked Turns . | . . . . . Heaviest Build 19 | 12 13 6 19 19 Greatest Support 28 | 26 26 8 20 28 Greatest Overweight (x) 3 | . 3 . 1 3 Average Overweight (x) . | . . . . . Largest Inventory Capacity 6 | 6 6 4 4 4 Average Capacity 4 | 4 5 4 4 4 Most Carried 4 | 2 4 2 4 4 Average Carried 3 | . 2 2 3 3 Final Capacity 6 | 6 4 4 4 4 Final Carried 4 | 2 2 2 4 2 Class Distribution -------------------- 56% | Mutant 43% | Scavenger-Mutant Dominant Class ---------------- Mutant | -10/Materials Mutant | -9/Materials Scavenger-Mutant | -9/Mines Scavenger-Mutant | -8/Materials Resources | -11 -10 -9 -9 -8 ----------- Run | Scr Mat Mat Min Mat Matter Collected 524 | 256 98 . 170 . Remotely . | . . . . . Salvage Created 143 | . 99 . . 44 Parts 8 | . 7 . . 1 Haulers Intercepted . | . . . . . Recyclers Shooed . | . . . . . Parts Field Recycled . | . . . . . Retrieved Matter . | . . . . . Parts Self-Destructed . | . . . . . Prevented . | . . . . . Kills | -11 -10 -9 -9 -8 ------- Run | Scr Mat Mat Min Mat Combat Hostiles Destroyed 7 | . 6 . . 1 Guns 7 | . 6 . . 1 Classes Destroyed 2 | . 1 . . 1 Swarmer 6 | . 6 . . . Duelist 1 | . . . . 1 Best Kill Streak 3 | . 3 . . 1 Combat Bots Only 3 | . 3 . . 1 Max Kills in Single Turn 1 | . 1 . . 1 Gunslinging . | . . . . . Exploded . | . . . . . Melee . | . . . . . Uniques/NPCs Destroyed . | . . . . . Combat | -11 -10 -9 -9 -8 -------- Run | Scr Mat Mat Min Mat Damage Taken 1427 | . 293 80 . 1054 Core 606 | . 46 6 . 554 Absorbed by Shields 119 | . . . . 119 Core Remaining (%) 93 | 100 81 . 98 . Volleys Fired 32 | . 28 . . 4 Largest 2 | . 2 . . 2 Hottest 130 | . 60 . . 130 Shots Fired 55 | . 49 . . 6 Gun 55 | . 49 . . 6 Cannon . | . . . . . Launcher . | . . . . . Special . | . . . . . Kinetic 28 | . 28 . . . Thermal 27 | . 21 . . 6 Explosive . | . . . . . Electromagnetic . | . . . . . Robot Hit Streak 7 | . 6 . . 7 Robot Miss Streak 2 | . 2 . . 1 Penetration Max . | . . . . . Secondary Targets . | . . . . . Shots Hit Robots 41 | . 36 . . 5 Core Hits 9 | . 6 . 1 2 Critical Hits . | . . . . . Critical Kills . | . . . . . Critical Parts Destroyed . | . . . . . Melee Attacks . | . . . . . Impact . | . . . . . Slashing . | . . . . . Piercing . | . . . . . Sneak Attacks . | . . . . . Combat Hostiles . | . . . . . Follow-up Attacks . | . . . . . Damage Inflicted 303 | . 207 . 19 77 Guns 281 | . 207 . . 74 Cannons . | . . . . . Explosions . | . . . . . Melee . | . . . . . Ramming 22 | . . . 19 3 Kinetic 133 | . 133 . . . Thermal 148 | . 74 . . 74 Explosive . | . . . . . Electromagnetic . | . . . . . Impact . | . . . . . Slashing . | . . . . . Piercing . | . . . . . Highest Corruption . | . . . . . Average Corruption . | . . . . . Corruption Purged . | . . . . . Overload Shots . | . . . . . Overflow Damage . | . . . . . Projectiles . | . . . . . Explosions . | . . . . . Melee . | . . . . . Knockbacks . | . . . . . Impact . | . . . . . Kinetic . | . . . . . Secondary . | . . . . . Self-Inflicted Damage . | . . . . . Shots . | . . . . . Rammed 6 | . . . 4 2 Targets Rammed 6 | . . . 4 2 Kicked . | . . . . . Crushed . | . . . . . Highest Temperature 237 | . 20 . . 237 Average Temperature 98 | . 19 . . 130 Received Heat Transfer 651 | . 6 18 . 627 Effects 3 | . . . . 3 Interference 3 | . . . . 3 Siege Activations . | . . . . . Robots Corrupted . | . . . . . Combat Hostiles . | . . . . . Parts Fried . | . . . . . Impact Corruptions . | . . . . . Robots Melted . | . . . . . Combat Hostiles . | . . . . . Parts Melted . | . . . . . Heat Transferred 360 | . 175 . . 185 Parts Sabotaged . | . . . . . Parts Stolen . | . . . . . Parts Stripped . | . . . . . Power Chain Reactions . | . . . . . Missiles Intercepted . | . . . . . Alert | -11 -10 -9 -9 -8 ------- Run | Scr Mat Mat Min Mat Peak Influence 195 | . 195 66 161 80 Average Influence 52 | . 76 18 56 19 Maximum Alert Level . | . . . . . Low Security (%) 100 | 100 100 100 100 100 Level 1 . | . . . . . Level 2 . | . . . . . Level 3 . | . . . . . Level 4 . | . . . . . Level 5 . | . . . . . High Security . | . . . . . Max Security . | . . . . . Squads Dispatched 2 | . . . . 2 Investigation 1 | . . . . 1 Extermination . | . . . . . Reinforcement 1 | . . . . 1 Assault . | . . . . . Garrison . | . . . . . Intercept . | . . . . . Construction Impeded . | . . . . . Haulers Reinforced . | . . . . . Stealth | -11 -10 -9 -9 -8 --------- Run | Scr Mat Mat Min Mat Distress Signals 5 | . 2 1 . 2 Communications Jammed . | . . . . . Distress Signals . | . . . . . Times Spotted 69 | . 25 12 2 30 Peak Tracking Total 13 | . 5 7 2 13 Tactical Retreats 16 | . 6 2 . 8 Traps | -11 -10 -9 -9 -8 ------- Run | Scr Mat Mat Min Mat Traps Triggered 1 | . . . . 1 Indirectly . | . . . . . Trap Hack Attempts . | . . . . . Triggered . | . . . . . Disarmed . | . . . . . Reprogrammed . | . . . . . Reused . | . . . . . Traps Extracted . | . . . . . Installed . | . . . . . Triggered . | . . . . . Machines | -11 -10 -9 -9 -8 ---------- Run | Scr Mat Mat Min Mat Machines Disabled . | . . . . . Max in Single Turn . | . . . . . Machines Sabotaged . | . . . . . Garrisons Compromised . | . . . . . Overloaded Fab Kills . | . . . . . Fab Network Shutdowns . | . . . . . Hacking | -11 -10 -9 -9 -8 --------- Run | Scr Mat Mat Min Mat Machines Accessed 4 | . 3 1 . . Terminals 2 | . 2 . . . Fabricators . | . . . . . Repair Stations 1 | . 1 . . . Recycling Units 1 | . . 1 . . Scanalyzers . | . . . . . Garrison Access . | . . . . . Total Hacks 9 | . 6 3 . . Successful 7 | . 5 2 . . Failed 2 | . 1 1 . . Catastrophic . | . . . . . Database Lockouts . | . . . . . Manual . | . . . . . Terminals 5 | . 5 . . . Fabricators . | . . . . . Repair Stations 1 | . 1 . . . Recycling Units 3 | . . 3 . . Scanalyzers . | . . . . . Garrison Access . | . . . . . Terminal Hacks 4 | . 4 . . . Prototype ID Bank 1 | . 1 . . . Assault Status 1 | . 1 . . . Recall Investigation 1 | . 1 . . . Hauler Manifests 1 | . 1 . . . Fabricator Hacks . | . . . . . Repair Station Hacks 1 | . 1 . . . Scan Component 1 | . 1 . . . Recycling Unit Hacks 2 | . . 2 . . Report Inventory 1 | . . 1 . . Retrieve Matter 1 | . . 1 . . Scanalyzer . | . . . . . Garrison Access Hacks . | . . . . . Unauthorized Hacks . | . . . . . Terminals . | . . . . . Fabricators . | . . . . . Repair Stations . | . . . . . Recycling Units . | . . . . . Scanalyzers . | . . . . . Garrison Access . | . . . . . Data Cores Recovered . | . . . . . Used . | . . . . . Hacking Detections 2 | . 1 1 . . Full Trace Events . | . . . . . Feedback Events . | . . . . . Feedback Blocked . | . . . . . Robot Schematics Acquired . | . . . . . Robots Built . | . . . . . Matter . | . . . . . Time . | . . . . . Total Robot Build Rating . | . . . . . Part Schematics Acquired . | . . . . . Parts Built . | . . . . . Matter . | . . . . . Time . | . . . . . Total Part Build Rating . | . . . . . Parts Repaired . | . . . . . Time . | . . . . . Parts Recycled . | . . . . . Recycled Matter . | . . . . . Retrieved Matter . | . . . . . Retrieved Components . | . . . . . Parts Scanalyzed . | . . . . . Part Schematics Acquired . | . . . . . Parts Damaged . | . . . . . Bothacking | -11 -10 -9 -9 -8 ------------ Run | Scr Mat Mat Min Mat Used RIF Installer . | . . . . . Robots Hacked . | . . . . . Non-combat . | . . . . . Combat . | . . . . . Robot Hacks Applied . | . . . . . Relay Couplers Released . | . . . . . Robots Rewired . | . . . . . Allies Hacked . | . . . . . Hacks Repelled . | . . . . . Allies | -11 -10 -9 -9 -8 -------- Run | Scr Mat Mat Min Mat Total Allies 5 | . . . 5 . Largest Group 5 | . . . 5 2 Highest-Rated Group 97 | . . . 97 39 Highest-Rated Ally 31 | . . . 31 31 Total Orders . | . . . . . Ally Attacks 38 | . . . 30 8 Total Damage 389 | . . . 318 71 Kills 9 | . . . 9 . Allies Corrupted . | . . . . . Allies Melted . | . . . . . Intel | -11 -10 -9 -9 -8 ------- Run | Scr Mat Mat Min Mat Robot Analysis Total . | . . . . . Derelict Logs Recovered 1 | . . . 1 . Drone Launches . | . . . . . Drone Recoveries . | . . . . . Exploration | -11 -10 -9 -9 -8 ------------- Run | Scr Mat Mat Min Mat Turns Passed 2050 | 66 444 52 1190 298 Spaces Moved 1791 | 59 402 129 869 332 Core 236 | 5 . . . 231 Treads 667 | . . . 575 92 Legs . | . . . . . Wheels 385 | 54 331 . . . Hover . | . . . . . Flight 503 | . 71 129 294 9 Fastest Speed 37 | 50 37 37 37 37 Average Speed 97 | 89 81 37 120 81 Slowest Speed 285 | 100 285 37 160 200 Overloaded Moves . | . . . . . Propulsion Burnouts . | . . . . . Robots Hopped . | . . . . . Cave-ins Triggered . | . . . . . Exploration Rate (%) 42 | 4 44 19 101 42 Regions Visited 4 Branch Regions 1 Pre-discovered Areas 1 | . . . 1 . Known Exits Taken . | . . . . . Unknown Exits Taken 4 | 1 1 1 1 . Scrap Searched 1 | . . . 1 . Spaces Dug . | . . . . . Terrain Destroyed . | . . . . . Melee . | . . . . . Projectile . | . . . . . AOE . | . . . . . Actions | -11 -10 -9 -9 -8 --------- Run | Scr Mat Mat Min Mat Total 2043 | 69 471 132 1017 354 Wait 140 | 3 25 4 108 . Move 1787 | 58 401 128 868 332 Hop . | . . . . . Pick Up 19 | 2 3 . 10 4 Fast Attach 18 | 6 3 . 6 3 Attach 16 | . 4 . 6 6 Detach 8 | . 4 . 3 1 Swap . | . . . . . Drop 17 | . 3 . 12 2 Fire 32 | . 28 . . 4 Melee . | . . . . . Ram . | . . . . . Kick . | . . . . . Crush 6 | . . . 4 2 Escape Stasis . | . . . . . Rewire . | . . . . . Trap . | . . . . . Miscellaneous . | . . . . . Route ------- -11/Scrapyard -10/Materials (discovered 2 exits: *Mat / [*Min]) -9/Materials -9/Mines (discovered 2 exits: [*Mat x2]) -8/Materials (discovered 1 exit: [*Fac]) History --------- Turn | Location | Event 10 | -11/Scrapyard | Discovered new exit (range 16) 67 | -11/Scrapyard | Entered Materials 317 | -10/Materials | Build established: Mutant 489 | -10/Materials | Discovered new exit (range 11) 500 | -10/Materials | Discovered new exit (range 6) 511 | -10/Materials | Entered another Materials area 511 | -9/Materials | Evolved 2 slots: Power x1, Propulsion x1 551 | -9/Materials | Discovered new exit (range 6) 563 | -9/Materials | Entered Mines 580 | -9/Mines | Assisted by bots powering up and referring to "LRC-V3" 678 | -9/Mines | Discovered new exit (range 8) 748 | -9/Mines | Joined a pair of Derelicts in attacking an 0b10 outpost 811 | -9/Mines | Found a hidden stash of uninstalled traps 1320 | -9/Mines | Build established: Scavenger-Mutant 1444 | -9/Mines | Discovered new exit (range 12) 1753 | -9/Mines | Entered Materials 1753 | -8/Materials | Accompanied by 2 allies 1753 | -8/Materials | Evolved 2 slots: Propulsion x1, Utility x1 1758 | -8/Materials | Led the pair of lost Derelicts to an unsafe place 1940 | -8/Materials | Lost 8 parts (2p3n2u1w) 1986 | -8/Materials | Core integrity fell below 50% 2023 | -8/Materials | Discovered new exit (range 10) 2035 | -8/Materials | Core integrity fell below 20% 2051 | -8/Materials | Destroyed by G-47 Trooper with Particle Gun Last Messages --------------- 01980_ System Shield destroyed. 02005_ K-01 Serf destroyed. 02010_ Acquired Arm. Treads. 02023_ Triggered Alarm Trap. 02023_ An alarm sounds. 02023_ ALERT: Alarm triggered, dispatching investigation squad. 02023_ EXIT=FOUND 02024_ Targeting Computer destroyed. 02027_ K-01 Serf collects debris. 02028_ Acquired Recalibrator. 02031_ K-01 Serf collects debris. 02031_ Acquired Hvy. Laser. 02035_ K-01 Serf collects debris. 02036_ Acquired Med. Treads. 02037_ U-05 Engineer lays Concrete. 02038_ Hvy. Laser destroyed. 02038_ U-05 Engineer lays Concrete. 02040_ K-01 Serf collects debris. 02042_ Slammed into G-47 Trooper. 02044_ U-05 Engineer lays Concrete. Map ----- +----------------------------------------------------+ | #?????????????# #??????????????? | | #?????????????# #??????????????? | | #?????????????# #??????????????? | | #????????????## ##?????????????? | | ############## #?????????????? | | #?????????????? | | #?????????????? | | #?????????????? | | ############## #?????????????? | | #????????????## ##?????????????? | | ####?????######### #??????????????? | | ?????????# T # #??????????????? | | ?????????# / +??????????????? | | ?????????# # #??????????????? | | ?##########+###### #??????????????? | | ?# / """ # ###### #??????????????? | | ?# """ # #??????????????? | | ?# """ + #??????????????? | | ?# # ! #??????????????? | | ?# ] ########%= #??????????????? | | ?# #??????#* #??????????????? | | ?# #??????# #??????????????? | | ?##########?????## Y ##?????????????? | | ?????????######## Yg ########??????? | | ?????????# #??????? | | ????????## u ! @ < #??????? | | ??? gg #??????? | | ????############# ########??????? | | ???????????????## #?????????????? | | ???????????????# #?????????????? | | ???????????????#! [ =#?????????????? | | ???????????????#!![[==#?????????????? | | ???????????????########?????????????? | | ????????????????????????????????????? | | ????????????????????????????????????? | | ????????????????????????????????????? | | ????????????????????????????????????? | | ????????????????????????????????????? | | ????????????????????????????????????? | | ????????????????????????????????????? | | ????????????????????????????????????? | | ????????????????????????????????????? | | ????????????????????????????????????? | | ????????????????????????????????????? | | ????????????????????????????????????? | | ????????????????????????????????????? | | ????????????????????????????????????? | | ????????????????????????????????????? | | ????????????????????????????????????? | | ????????????????????????????????????? | +----------------------------------------------------+ Best States ------------- Heat Dissipation 31 Energy Generation 23 Energy Capacity 430 Matter Stores 300 Matter Capacity 300 Sight Range 16 Terrain Scan Density 10 ECM Strength 1 Resistance: KI 20 Resistance: TH 20 Resistance: EX 20 Resistance: EM 20 Resistance: I 20 Resistance: S 20 Resistance: P 20 Evasion (%) 62 Targeting Accuracy 5 Recoil Reduction 1 Salvage Targeting 1 Defensive Hacking 10 Item Schematics ----------------- None Robot Schematics ------------------ None Fabricated ------------ Nothing Alien Tech Used ----------------- None Achievements -------------- Shopping List The More The Merrier Challenges ------------ None Game ------ Seed LegArmorChronowheel Manual? 0 Play Time 00:27:12 Cumulative 28.3 hours Start 2019.12.07 @ 19:33:36 End 2019.12.07 @ 19:57:51 Sessions 1 Manual Loads 0 Difficulty Adventurer Special Mode None Game No. 42 Rogue 41 Adventurer 1 Explorer 0 Win Type - Total 0 Types 0/0/0/0/0/0/0 Lore% 10 Gallery% 28 Achievement% 10 Wizard Run 0 Options --------- ASCII 0 Keyboard 1 Movement Numpad Keybinds 0 Fullscreen 1 Font 18/SmallcapsGlow Map View 76x50 Tactical HUD 1 Map Filters NONE Filters NONE Steam 1 RUN: b9ec552e-178e-4071-828f-8eb961094f6a